[Event "Titled Tuesday Blitz March 22 Early 2022"]
[White "Jeet, Jain"]
[Black "Dinu, Dumitru-Daniel"]
[WhiteFideId "5073022"]
[BlackFideId "1208403"]
[WhiteElo "2085"]
[BlackElo "2240"]
[Result "1-0"]
[Round "05"]
[TimeControl "180+1"]
[Date "2022.03.22"]
[WhiteClock "0:00:54"]
[BlackClock "0:00:17"]

1. d4 {[%clk 0:03:00]}  Nf6 {[%clk 0:02:59]} 2. Nf3 {[%clk 0:03:01]}  c5 {[%clk 0:02:59]} 3. e3 {[%clk 0:02:59]}  cxd4 {[%clk 0:02:58]} 4. exd4 {[%clk 0:02:59]}  g6 {[%clk 0:02:58]} 5. Bf4 {[%clk 0:02:57]}  Bg7 {[%clk 0:02:57]} 6. Be2 {[%clk 0:02:57]}  O-O {[%clk 0:02:57]} 7. h3 {[%clk 0:02:57]}  d5 {[%clk 0:02:56]} 8. O-O {[%clk 0:02:57]}  Nc6 {[%clk 0:02:56]} 9. c3 {[%clk 0:02:57]}  Bf5 {[%clk 0:02:54]} 10. Qb3 {[%clk 0:02:57]}  Na5 {[%clk 0:02:41]} 11. Qa4 {[%clk 0:02:55]}  a6 {[%clk 0:02:39]} 12. Nbd2 {[%clk 0:02:48]}  b5 {[%clk 0:02:36]} 13. Qa3 {[%clk 0:02:46]}  Qb6 {[%clk 0:02:26]} 14. b4 {[%clk 0:02:41]}  Nb7 {[%clk 0:02:21]} 15. Qb2 {[%clk 0:02:34]}  Rac8 {[%clk 0:02:19]} 16. Nb3 {[%clk 0:02:33]}  Ne4 {[%clk 0:02:12]} 17. Nc5 {[%clk 0:02:32]}  a5 {[%clk 0:02:01]} 18. a3 {[%clk 0:02:22]}  axb4 {[%clk 0:01:57]} 19. axb4 {[%clk 0:02:22]}  Ra8 {[%clk 0:01:55]} 20. Ne5 {[%clk 0:02:18]}  Bxe5 {[%clk 0:01:43]} 21. Bxe5 {[%clk 0:02:17]}  Nbd6 {[%clk 0:01:42]} 22. f3 {[%clk 0:02:12]}  Ng5 {[%clk 0:01:37]} 23. h4 {[%clk 0:02:10]}  Ne6 {[%clk 0:01:30]} 24. Nd7 {[%clk 0:02:10]}  Qc7 {[%clk 0:01:15]} 25. Nxf8 {[%clk 0:02:10]}  Rxa1 {[%clk 0:01:08]} 26. Rxa1 {[%clk 0:02:08]}  Nxf8 {[%clk 0:01:08]} 27. Bxb5 {[%clk 0:02:06]}  f6 {[%clk 0:01:05]} 28. Bg3 {[%clk 0:02:00]}  Ne6 {[%clk 0:00:57]} 29. Be2 {[%clk 0:01:52]}  h5 {[%clk 0:00:52]} 30. b5 {[%clk 0:01:52]}  Qb6 {[%clk 0:00:51]} 31. Ra6 {[%clk 0:01:50]}  Qc7 {[%clk 0:00:47]} 32. b6 {[%clk 0:01:50]}  Qb8 {[%clk 0:00:46]} 33. Bxd6 {[%clk 0:01:45]}  exd6 {[%clk 0:00:46]} 34. b7 {[%clk 0:01:45]}  Nc7 {[%clk 0:00:45]} 35. Rc6 {[%clk 0:01:42]}  Ne8 {[%clk 0:00:37]} 36. Qb6 {[%clk 0:01:21]}  Kf8 {[%clk 0:00:31]} 37. c4 {[%clk 0:01:20]}  Be6 {[%clk 0:00:23]} 38. c5 {[%clk 0:01:11]}  Bd7 {[%clk 0:00:19]} 39. Rxd6 {[%clk 0:01:05]}  Ke7 {[%clk 0:00:19]} 40. Rxd7+ {[%clk 0:01:01]}  Kxd7 {[%clk 0:00:19]} 41. Bb5+ {[%clk 0:01:02]}  Ke7 {[%clk 0:00:19]} 42. Bxe8 {[%clk 0:01:01]}  Kxe8 {[%clk 0:00:18]} 43. Qc6+ {[%clk 0:00:59]}  Kf7 {[%clk 0:00:18]} 44. Qxd5+ {[%clk 0:00:57]}  Kg7 {[%clk 0:00:17]} 45. Qd7+ {[%clk 0:00:54]}  Kh6 {[%clk 0:00:17]} 46. Qc8 {[%clk 0:00:54]}  Qg3 {[%clk 0:00:17]} 47. Qh8# {[%clk 0:00:54]} 1-0


[Site "https://www.chess.com"]

[Event "Titled Tuesday Blitz March 22 Early 2022"]
[White "Kobalia, Mikhail"]
[Black "Khripachenko, Alexander"]
[WhiteFideId "4119150"]
[BlackFideId "54184975"]
[WhiteElo "2667"]
[BlackElo "2177"]
[Result "1-0"]
[Round "05"]
[TimeControl "180+1"]
[Date "2022.03.22"]
[WhiteClock "0:00:18"]
[BlackClock "0:00:03"]

1. e4 {[%clk 0:03:00]}  c5 {[%clk 0:02:48]} 2. Nf3 {[%clk 0:03:00]}  d6 {[%clk 0:02:48]} 3. d4 {[%clk 0:03:00]}  cxd4 {[%clk 0:02:48]} 4. Nxd4 {[%clk 0:03:01]}  Nf6 {[%clk 0:02:49]} 5. Nc3 {[%clk 0:03:01]}  a6 {[%clk 0:02:49]} 6. Be3 {[%clk 0:03:02]}  e6 {[%clk 0:02:49]} 7. g4 {[%clk 0:03:01]}  e5 {[%clk 0:02:39]} 8. Nf5 {[%clk 0:03:01]}  g6 {[%clk 0:02:39]} 9. Bg2 {[%clk 0:02:58]}  gxf5 {[%clk 0:02:35]} 10. exf5 {[%clk 0:02:58]}  d5 {[%clk 0:02:04]} 11. Nxd5 {[%clk 0:02:46]}  Nxd5 {[%clk 0:02:00]} 12. Bxd5 {[%clk 0:02:47]}  Nc6 {[%clk 0:01:43]} 13. c3 {[%clk 0:02:47]}  Bd7 {[%clk 0:01:20]} 14. Qb3 {[%clk 0:02:45]}  Qf6 {[%clk 0:01:03]} 15. Qxb7 {[%clk 0:02:40]}  Rb8 {[%clk 0:01:03]} 16. Qxa6 {[%clk 0:02:39]}  Rxb2 {[%clk 0:00:56]} 17. g5 {[%clk 0:02:19]}  Qd6 {[%clk 0:00:46]} 18. Rd1 {[%clk 0:01:53]}  Qc7 {[%clk 0:00:46]} 19. Qc4 {[%clk 0:01:50]}  Ba3 {[%clk 0:00:10]} 20. Bxf7+ {[%clk 0:01:44]}  Kf8 {[%clk 0:00:10]} 21. Be6 {[%clk 0:00:59]}  Be8 {[%clk 0:00:07]} 22. f6 {[%clk 0:00:57]}  Qa5 {[%clk 0:00:03]} 23. f7 {[%clk 0:00:56]}  Bxf7 {[%clk 0:00:02]} 24. Bxf7 {[%clk 0:00:51]}  Rc2 {[%clk 0:00:03]} 25. O-O {[%clk 0:00:33]}  Qxc3 {[%clk 0:00:02]} 26. Qe6 {[%clk 0:00:30]}  Be7 {[%clk 0:00:02]} 27. Bh5 {[%clk 0:00:26]}  Qc4 {[%clk 0:00:03]} 28. Rd5 {[%clk 0:00:24]}  Nd8 {[%clk 0:00:01]} 29. Rxd8+ {[%clk 0:00:17]}  Bxd8 {[%clk 0:00:01]} 30. Qe8+ {[%clk 0:00:17]}  Kg7 {[%clk 0:00:02]} 31. Qd7+ {[%clk 0:00:18]}  Kf8 {[%clk 0:00:02]} 32. Qxd8+ {[%clk 0:00:18]}  Kg7 {[%clk 0:00:03]} 33. Qe7+ {[%clk 0:00:18]} 1-0


[Site "https://www.chess.com"]

[Event "Titled Tuesday Blitz March 22 Early 2022"]
[White "Koellner, Ruben Gideon"]
[Black "Manolache, Marius"]
[WhiteFideId "12993093"]
[BlackFideId "1201530"]
[WhiteElo "2503"]
[BlackElo "2389"]
[Result "1-0"]
[Round "05"]
[TimeControl "180+1"]
[Date "2022.03.22"]
[WhiteClock "0:00:05"]
[BlackClock "0:00:23"]

1. d4 {[%clk 0:02:51]}  Nf6 {[%clk 0:02:58]} 2. Bg5 {[%clk 0:01:58]}  e6 {[%clk 0:02:56]} 3. Nd2 {[%clk 0:01:58]}  h6 {[%clk 0:02:53]} 4. Bh4 {[%clk 0:01:58]}  d5 {[%clk 0:02:52]} 5. e3 {[%clk 0:01:58]}  Be7 {[%clk 0:02:51]} 6. Bd3 {[%clk 0:01:58]}  b6 {[%clk 0:02:51]} 7. c3 {[%clk 0:01:58]}  a5 {[%clk 0:02:50]} 8. Bxf6 {[%clk 0:01:54]}  Bxf6 {[%clk 0:02:49]} 9. f4 {[%clk 0:01:54]}  Ba6 {[%clk 0:02:47]} 10. Bxa6 {[%clk 0:01:54]}  Rxa6 {[%clk 0:02:47]} 11. a4 {[%clk 0:01:54]}  Bh4+ {[%clk 0:02:44]} 12. g3 {[%clk 0:01:54]}  Be7 {[%clk 0:02:44]} 13. Ngf3 {[%clk 0:01:54]}  Nd7 {[%clk 0:02:42]} 14. O-O {[%clk 0:01:53]}  f5 {[%clk 0:02:39]} 15. Ne5 {[%clk 0:01:52]}  Nxe5 {[%clk 0:02:37]} 16. fxe5 {[%clk 0:01:52]}  h5 {[%clk 0:02:32]} 17. h3 {[%clk 0:01:39]}  g6 {[%clk 0:02:26]} 18. Kg2 {[%clk 0:01:38]}  Ra7 {[%clk 0:02:25]} 19. Qe2 {[%clk 0:01:37]}  c6 {[%clk 0:02:25]} 20. Nf3 {[%clk 0:01:24]}  Qd7 {[%clk 0:02:19]} 21. Qd3 {[%clk 0:01:24]}  Kd8 {[%clk 0:02:10]} 22. Rfc1 {[%clk 0:01:20]}  Kc7 {[%clk 0:02:08]} 23. c4 {[%clk 0:01:18]}  Kb8 {[%clk 0:02:07]} 24. Rab1 {[%clk 0:01:14]}  Ka8 {[%clk 0:02:07]} 25. c5 {[%clk 0:01:06]}  bxc5 {[%clk 0:02:07]} 26. dxc5 {[%clk 0:01:06]}  Rb8 {[%clk 0:02:06]} 27. Nd4 {[%clk 0:01:04]}  Rb4 {[%clk 0:02:05]} 28. b3 {[%clk 0:01:00]}  h4 {[%clk 0:02:05]} 29. g4 {[%clk 0:00:59]}  Qc8 {[%clk 0:01:55]} 30. gxf5 {[%clk 0:00:56]}  gxf5 {[%clk 0:01:54]} 31. Kh1 {[%clk 0:00:54]}  Bf8 {[%clk 0:01:48]} 32. Rb2 {[%clk 0:00:52]}  Rg7 {[%clk 0:01:40]} 33. Rg2 {[%clk 0:00:20]}  Rxg2 {[%clk 0:01:39]} 34. Kxg2 {[%clk 0:00:21]}  Bg7 {[%clk 0:01:25]} 35. Nc2 {[%clk 0:00:21]}  Rb8 {[%clk 0:01:22]} 36. Qc3 {[%clk 0:00:19]}  Qc7 {[%clk 0:01:20]} 37. Nd4 {[%clk 0:00:11]}  Re8 {[%clk 0:01:16]} 38. Nf3 {[%clk 0:00:09]}  Rg8 {[%clk 0:01:07]} 39. Kf2 {[%clk 0:00:09]}  Bh8 {[%clk 0:01:05]} 40. Rg1 {[%clk 0:00:09]}  Rxg1 {[%clk 0:01:04]} 41. Kxg1 {[%clk 0:00:10]}  Kb7 {[%clk 0:01:04]} 42. Kf2 {[%clk 0:00:10]}  Qg7 {[%clk 0:01:03]} 43. Nxh4 {[%clk 0:00:08]}  Qxe5 {[%clk 0:00:53]} 44. Qxa5 {[%clk 0:00:08]}  f4 {[%clk 0:00:41]} 45. Qb6+ {[%clk 0:00:07]}  Ka8 {[%clk 0:00:41]} 46. Qxc6+ {[%clk 0:00:07]}  Kb8 {[%clk 0:00:41]} 47. Qd6+ {[%clk 0:00:07]}  Kb7 {[%clk 0:00:40]} 48. Qxe5 {[%clk 0:00:08]}  Bxe5 {[%clk 0:00:40]} 49. exf4 {[%clk 0:00:05]}  Bxf4 {[%clk 0:00:40]} 50. Ng6 {[%clk 0:00:05]}  Bc1 {[%clk 0:00:35]} 51. Ke2 {[%clk 0:00:02]}  Ba3 {[%clk 0:00:32]} 52. h4 {[%clk 0:00:01]}  Bxc5 {[%clk 0:00:31]} 53. h5 {[%clk 0:00:02]}  Bd4 {[%clk 0:00:28]} 54. h6 {[%clk 0:00:02]}  Kc6 {[%clk 0:00:27]} 55. h7 {[%clk 0:00:03]}  Kc5 {[%clk 0:00:27]} 56. Kd3 {[%clk 0:00:03]}  Bg7 {[%clk 0:00:27]} 57. h8=Q {[%clk 0:00:03]}  Bxh8 {[%clk 0:00:27]} 58. Nxh8 {[%clk 0:00:04]}  e5 {[%clk 0:00:25]} 59. Ng6 {[%clk 0:00:04]}  e4+ {[%clk 0:00:26]} 60. Ke3 {[%clk 0:00:04]}  Kb4 {[%clk 0:00:26]} 61. Ne5 {[%clk 0:00:03]}  Ka5 {[%clk 0:00:24]} 62. Kd4 {[%clk 0:00:03]}  Kb4 {[%clk 0:00:24]} 63. Nc6+ {[%clk 0:00:03]}  Kxb3 {[%clk 0:00:23]} 64. a5 {[%clk 0:00:03]}  Kc2 {[%clk 0:00:23]} 65. Kxd5 {[%clk 0:00:03]}  e3 {[%clk 0:00:22]} 66. Nd4+ {[%clk 0:00:03]}  Kd3 {[%clk 0:00:23]} 67. a6 {[%clk 0:00:04]}  e2 {[%clk 0:00:22]} 68. Nxe2 {[%clk 0:00:04]}  Kxe2 {[%clk 0:00:23]} 69. a7 {[%clk 0:00:05]} 1-0


[Site "https://www.chess.com"]

[Event "Titled Tuesday Blitz March 22 Early 2022"]
[White "Kosteniuk, Alexandra"]
[Black "Tari, Aryan"]
[WhiteFideId "4128125"]
[BlackFideId "1510045"]
[WhiteElo "2469"]
[BlackElo "2567"]
[Result "0-1"]
[Round "05"]
[TimeControl "180+1"]
[Date "2022.03.22"]
[WhiteClock "0:00:02"]
[BlackClock "0:00:06"]

1. Nf3 {[%clk 0:03:00]}  g6 {[%clk 0:02:58]} 2. g3 {[%clk 0:03:00]}  Bg7 {[%clk 0:02:57]} 3. Bg2 {[%clk 0:03:01]}  c5 {[%clk 0:02:57]} 4. c4 {[%clk 0:02:59]}  Nc6 {[%clk 0:02:56]} 5. O-O {[%clk 0:03:00]}  f5 {[%clk 0:02:45]} 6. e3 {[%clk 0:02:55]}  Nf6 {[%clk 0:02:43]} 7. d4 {[%clk 0:02:55]}  O-O {[%clk 0:02:43]} 8. d5 {[%clk 0:02:51]}  Na5 {[%clk 0:02:42]} 9. d6 {[%clk 0:02:41]}  e6 {[%clk 0:02:22]} 10. Qd3 {[%clk 0:02:31]}  b5 {[%clk 0:01:55]} 11. Nfd2 {[%clk 0:02:12]}  bxc4 {[%clk 0:01:51]} 12. Qa3 {[%clk 0:01:59]}  Bb7 {[%clk 0:01:34]} 13. Qxc5 {[%clk 0:01:39]}  Bxg2 {[%clk 0:01:31]} 14. Kxg2 {[%clk 0:01:40]}  Rc8 {[%clk 0:01:13]} 15. Qxa7 {[%clk 0:01:31]}  Nd5 {[%clk 0:01:14]} 16. Nc3 {[%clk 0:01:19]}  Nxc3 {[%clk 0:01:05]} 17. bxc3 {[%clk 0:01:19]}  Bxc3 {[%clk 0:01:06]} 18. Rb1 {[%clk 0:01:18]}  Bg7 {[%clk 0:01:05]} 19. Rb5 {[%clk 0:01:11]}  Nc6 {[%clk 0:01:05]} 20. Qa4 {[%clk 0:01:07]}  c3 {[%clk 0:01:04]} 21. Nc4 {[%clk 0:01:05]}  Ra8 {[%clk 0:01:04]} 22. Qc2 {[%clk 0:01:05]}  Ra6 {[%clk 0:01:02]} 23. a4 {[%clk 0:00:59]}  Qa8 {[%clk 0:01:00]} 24. Kg1 {[%clk 0:00:41]}  Rxa4 {[%clk 0:01:00]} 25. Nb6 {[%clk 0:00:38]}  Ra2 {[%clk 0:01:01]} 26. Qb3 {[%clk 0:00:28]}  Qa7 {[%clk 0:00:47]} 27. Nxd7 {[%clk 0:00:28]}  Rd8 {[%clk 0:00:36]} 28. Rb7 {[%clk 0:00:28]}  Qa4 {[%clk 0:00:26]} 29. Qxe6+ {[%clk 0:00:28]}  Kh8 {[%clk 0:00:27]} 30. Nc5 {[%clk 0:00:24]}  Qa8 {[%clk 0:00:21]} 31. Qf7 {[%clk 0:00:24]}  Rg8 {[%clk 0:00:21]} 32. Ne6 {[%clk 0:00:25]}  Ne5 {[%clk 0:00:20]} 33. Qe7 {[%clk 0:00:20]}  Nf3+ {[%clk 0:00:16]} 34. Kg2 {[%clk 0:00:20]}  Ng5 {[%clk 0:00:15]} 35. Nc5 {[%clk 0:00:13]}  Ra7 {[%clk 0:00:09]} 36. f3 {[%clk 0:00:13]}  Rxb7 {[%clk 0:00:08]} 37. Qxb7 {[%clk 0:00:14]}  Qa5 {[%clk 0:00:07]} 38. Nb3 {[%clk 0:00:08]}  Qe5 {[%clk 0:00:03]} 39. h4 {[%clk 0:00:07]}  Ne6 {[%clk 0:00:03]} 40. d7 {[%clk 0:00:08]}  Qd6 {[%clk 0:00:03]} 41. Qa7 {[%clk 0:00:05]}  Rd8 {[%clk 0:00:04]} 42. Ba3 {[%clk 0:00:05]}  Qxd7 {[%clk 0:00:04]} 43. Qxd7 {[%clk 0:00:05]}  Rxd7 {[%clk 0:00:05]} 44. Rc1 {[%clk 0:00:05]}  h5 {[%clk 0:00:06]} 45. Nc5 {[%clk 0:00:05]}  Nxc5 {[%clk 0:00:06]} 46. Bxc5 {[%clk 0:00:06]}  Rd2+ {[%clk 0:00:06]} 47. Kf1 {[%clk 0:00:06]}  c2 {[%clk 0:00:07]} 48. Ke1 {[%clk 0:00:04]}  Bc3 {[%clk 0:00:06]} 49. Bd4+ {[%clk 0:00:05]}  Rxd4+ {[%clk 0:00:06]} 50. Ke2 {[%clk 0:00:02]}  Rd2+ {[%clk 0:00:06]} 0-1


[Site "https://www.chess.com"]

[Event "Titled Tuesday Blitz March 22 Early 2022"]
[White "Kouskoutis, Georgios-Alexandros"]
[Black "Prohorov, Olexandr"]
[WhiteFideId "4234049"]
[BlackFideId "14105578"]
[WhiteElo "2130"]
[BlackElo "1993"]
[Result "1-0"]
[Round "05"]
[TimeControl "180+1"]
[Date "2022.03.22"]
[WhiteClock "0:00:04"]
[BlackClock "0:00:01"]

1. c4 {[%clk 0:02:48]}  g6 {[%clk 0:01:38]} 2. g3 {[%clk 0:02:45]}  Bg7 {[%clk 0:01:38]} 3. Bg2 {[%clk 0:02:45]}  Nf6 {[%clk 0:01:37]} 4. Nc3 {[%clk 0:02:45]}  O-O {[%clk 0:01:38]} 5. e4 {[%clk 0:02:46]}  d6 {[%clk 0:01:36]} 6. Nge2 {[%clk 0:02:46]}  c5 {[%clk 0:01:35]} 7. O-O {[%clk 0:02:47]}  Nc6 {[%clk 0:01:34]} 8. d3 {[%clk 0:02:47]}  Ne8 {[%clk 0:01:34]} 9. h3 {[%clk 0:02:45]}  Nc7 {[%clk 0:01:34]} 10. f4 {[%clk 0:02:45]}  Ne6 {[%clk 0:01:33]} 11. Kh2 {[%clk 0:02:45]}  Ned4 {[%clk 0:01:32]} 12. Nxd4 {[%clk 0:02:42]}  Nxd4 {[%clk 0:01:32]} 13. Be3 {[%clk 0:02:43]}  Rb8 {[%clk 0:01:31]} 14. Rb1 {[%clk 0:02:39]}  a5 {[%clk 0:01:29]} 15. a3 {[%clk 0:02:36]}  Bd7 {[%clk 0:01:20]} 16. b4 {[%clk 0:02:14]}  axb4 {[%clk 0:01:20]} 17. axb4 {[%clk 0:02:15]}  cxb4 {[%clk 0:01:17]} 18. Rxb4 {[%clk 0:01:17]}  b5 {[%clk 0:01:17]} 19. Bxd4 {[%clk 0:01:13]}  Bxd4 {[%clk 0:01:15]} 20. Nxb5 {[%clk 0:01:14]}  Bg7 {[%clk 0:00:33]} 21. Qb3 {[%clk 0:00:55]}  Qa5 {[%clk 0:00:18]} 22. Rb1 {[%clk 0:00:52]}  Rfc8 {[%clk 0:00:15]} 23. Na3 {[%clk 0:00:18]}  Ra8 {[%clk 0:00:12]} 24. Nc2 {[%clk 0:00:15]}  h5 {[%clk 0:00:10]} 25. e5 {[%clk 0:00:07]}  Bc6 {[%clk 0:00:02]} 26. Bxc6 {[%clk 0:00:06]}  Rxc6 {[%clk 0:00:03]} 27. d4 {[%clk 0:00:06]}  dxe5 {[%clk 0:00:03]} 28. dxe5 {[%clk 0:00:07]}  Qc5 {[%clk 0:00:02]} 29. Qe3 {[%clk 0:00:04]}  Qa5 {[%clk 0:00:01]} 30. Rb8+ {[%clk 0:00:04]}  Rxb8 {[%clk 0:00:01]} 31. Rxb8+ {[%clk 0:00:04]}  Kh7 {[%clk 0:00:02]} 32. Qd3 {[%clk 0:00:04]}  h4 {[%clk 0:00:01]} 33. gxh4 {[%clk 0:00:04]} 1-0


[Site "https://www.chess.com"]

[Event "Titled Tuesday Blitz March 22 Early 2022"]
[White "Krishnan, Varun"]
[Black "Ciolacu, Alessia-Mihaela"]
[WhiteFideId "5054508"]
[BlackFideId "1252640"]
[WhiteElo "2615"]
[BlackElo "1777"]
[Result "1/2-1/2"]
[Round "05"]
[TimeControl "180+1"]
[Date "2022.03.22"]
[WhiteClock "0:00:04"]
[BlackClock "0:00:11"]

1. e4 {[%clk 0:03:00]}  e5 {[%clk 0:02:59]} 2. Nf3 {[%clk 0:02:59]}  Nc6 {[%clk 0:02:59]} 3. Bb5 {[%clk 0:02:59]}  Nf6 {[%clk 0:02:59]} 4. d3 {[%clk 0:02:55]}  Bc5 {[%clk 0:02:57]} 5. Nbd2 {[%clk 0:02:52]}  O-O {[%clk 0:02:54]} 6. O-O {[%clk 0:02:50]}  d6 {[%clk 0:02:54]} 7. c3 {[%clk 0:02:48]}  a6 {[%clk 0:02:54]} 8. Bxc6 {[%clk 0:02:42]}  bxc6 {[%clk 0:02:55]} 9. a4 {[%clk 0:02:36]}  Re8 {[%clk 0:02:51]} 10. Re1 {[%clk 0:02:35]}  Ng4 {[%clk 0:02:44]} 11. d4 {[%clk 0:02:29]}  Ba7 {[%clk 0:02:39]} 12. Nf1 {[%clk 0:02:09]}  exd4 {[%clk 0:02:09]} 13. cxd4 {[%clk 0:02:09]}  c5 {[%clk 0:02:09]} 14. h3 {[%clk 0:02:00]}  Nf6 {[%clk 0:02:09]} 15. e5 {[%clk 0:01:59]}  dxe5 {[%clk 0:02:08]} 16. dxe5 {[%clk 0:01:53]}  Qxd1 {[%clk 0:02:09]} 17. Rxd1 {[%clk 0:01:53]}  Ne4 {[%clk 0:02:09]} 18. Be3 {[%clk 0:01:24]}  Bb7 {[%clk 0:02:01]} 19. Rac1 {[%clk 0:01:10]}  Bb6 {[%clk 0:01:56]} 20. N1d2 {[%clk 0:00:47]}  Rad8 {[%clk 0:01:37]} 21. Nc4 {[%clk 0:00:42]}  a5 {[%clk 0:01:28]} 22. Ng5 {[%clk 0:00:35]}  h6 {[%clk 0:01:15]} 23. Nxe4 {[%clk 0:00:33]}  Bxe4 {[%clk 0:01:15]} 24. f3 {[%clk 0:00:24]}  Bc6 {[%clk 0:01:10]} 25. b3 {[%clk 0:00:21]}  Rd5 {[%clk 0:01:08]} 26. Bd2 {[%clk 0:00:20]}  Red8 {[%clk 0:01:06]} 27. Kf2 {[%clk 0:00:18]}  Rd3 {[%clk 0:01:03]} 28. Ke1 {[%clk 0:00:14]}  Rxb3 {[%clk 0:01:01]} 29. Nxa5 {[%clk 0:00:14]}  Bxa5 {[%clk 0:00:59]} 30. Bxa5 {[%clk 0:00:15]}  Rxd1+ {[%clk 0:00:58]} 31. Rxd1 {[%clk 0:00:15]}  Bxa4 {[%clk 0:00:58]} 32. Rd8+ {[%clk 0:00:15]}  Kh7 {[%clk 0:00:58]} 33. Bxc7 {[%clk 0:00:15]}  c4 {[%clk 0:00:56]} 34. Rd4 {[%clk 0:00:12]}  Rb1+ {[%clk 0:00:52]} 35. Kf2 {[%clk 0:00:12]}  c3 {[%clk 0:00:48]} 36. Rxa4 {[%clk 0:00:11]}  c2 {[%clk 0:00:48]} 37. Rc4 {[%clk 0:00:11]}  c1=Q {[%clk 0:00:48]} 38. Rxc1 {[%clk 0:00:11]}  Rxc1 {[%clk 0:00:49]} 39. Bd6 {[%clk 0:00:11]}  Kg6 {[%clk 0:00:50]} 40. g4 {[%clk 0:00:10]}  Kg5 {[%clk 0:00:47]} 41. Kg3 {[%clk 0:00:10]}  Rg1+ {[%clk 0:00:46]} 42. Kf2 {[%clk 0:00:10]}  Rh1 {[%clk 0:00:46]} 43. Kg3 {[%clk 0:00:10]}  Rg1+ {[%clk 0:00:34]} 44. Kf2 {[%clk 0:00:10]}  Rd1 {[%clk 0:00:35]} 45. Kg3 {[%clk 0:00:10]}  h5 {[%clk 0:00:33]} 46. f4+ {[%clk 0:00:07]}  Kh6 {[%clk 0:00:31]} 47. Be7 {[%clk 0:00:06]}  hxg4 {[%clk 0:00:30]} 48. hxg4 {[%clk 0:00:05]}  g6 {[%clk 0:00:30]} 49. Bg5+ {[%clk 0:00:04]}  Kg7 {[%clk 0:00:31]} 50. Kf3 {[%clk 0:00:05]}  Kf8 {[%clk 0:00:30]} 51. Bf6 {[%clk 0:00:04]}  Ke8 {[%clk 0:00:29]} 52. f5 {[%clk 0:00:05]}  Rf1+ {[%clk 0:00:27]} 53. Ke4 {[%clk 0:00:04]}  Rg1 {[%clk 0:00:20]} 54. Kf4 {[%clk 0:00:04]}  gxf5 {[%clk 0:00:20]} 55. gxf5 {[%clk 0:00:05]}  Kd7 {[%clk 0:00:20]} 56. Ke4 {[%clk 0:00:05]}  Re1+ {[%clk 0:00:19]} 57. Kf4 {[%clk 0:00:05]}  Rf1+ {[%clk 0:00:18]} 58. Ke4 {[%clk 0:00:05]}  Kc6 {[%clk 0:00:18]} 59. Kd4 {[%clk 0:00:02]}  Rxf5 {[%clk 0:00:16]} 60. Ke4 {[%clk 0:00:02]}  Rf1 {[%clk 0:00:16]} 61. Be7 {[%clk 0:00:02]}  Kd7 {[%clk 0:00:14]} 62. Bd6 {[%clk 0:00:02]}  Ke6 {[%clk 0:00:15]} 63. Bb8 {[%clk 0:00:02]}  Re1+ {[%clk 0:00:14]} 64. Kd4 {[%clk 0:00:01]}  Rd1+ {[%clk 0:00:15]} 65. Ke4 {[%clk 0:00:01]}  Rb1 {[%clk 0:00:15]} 66. Bc7 {[%clk 0:00:02]}  Rd1 {[%clk 0:00:16]} 67. Bd6 {[%clk 0:00:02]}  f5+ {[%clk 0:00:15]} 68. Kf4 {[%clk 0:00:02]}  Rf1+ {[%clk 0:00:15]} 69. Ke3 {[%clk 0:00:02]}  Rd1 {[%clk 0:00:14]} 70. Bb8 {[%clk 0:00:03]}  Rd5 {[%clk 0:00:14]} 71. Bc7 {[%clk 0:00:03]}  Rc5 {[%clk 0:00:12]} 72. Bd6 {[%clk 0:00:03]}  Rc4 {[%clk 0:00:13]} 73. Bb8 {[%clk 0:00:03]}  f4+ {[%clk 0:00:13]} 74. Kf3 {[%clk 0:00:03]}  Kf5 {[%clk 0:00:14]} 75. e6 {[%clk 0:00:04]}  Re4 {[%clk 0:00:13]} 76. Bd6 {[%clk 0:00:03]}  Rxe6 {[%clk 0:00:13]} 77. Bxf4 {[%clk 0:00:03]}  Re4 {[%clk 0:00:12]} 78. Be3 {[%clk 0:00:03]}  Rc4 {[%clk 0:00:12]} 79. Ke2 {[%clk 0:00:04]}  Rc3 {[%clk 0:00:12]} 80. Kd2 {[%clk 0:00:03]}  Ra3 {[%clk 0:00:12]} 81. Bd4 {[%clk 0:00:04]}  Ke4 {[%clk 0:00:11]} 1/2-1/2


[Site "https://www.chess.com"]

[Event "Titled Tuesday Blitz March 22 Early 2022"]
[White "Kulkarni, Rakesh"]
[Black "Milchev, Nikolay"]
[WhiteFideId "5037077"]
[BlackFideId "2906090"]
[WhiteElo "2246"]
[BlackElo "2449"]
[Result "1-0"]
[Round "05"]
[TimeControl "180+1"]
[Date "2022.03.22"]
[WhiteClock "0:00:41"]
[BlackClock "0:01:12"]

1. e4 {[%clk 0:02:52]}  c5 {[%clk 0:03:00]} 2. c3 {[%clk 0:02:51]}  d5 {[%clk 0:03:00]} 3. exd5 {[%clk 0:02:49]}  Qxd5 {[%clk 0:03:01]} 4. d4 {[%clk 0:02:49]}  Nf6 {[%clk 0:03:01]} 5. Nf3 {[%clk 0:02:47]}  Nc6 {[%clk 0:02:59]} 6. Be3 {[%clk 0:02:45]}  Bg4 {[%clk 0:02:57]} 7. dxc5 {[%clk 0:02:31]}  Qxd1+ {[%clk 0:02:57]} 8. Kxd1 {[%clk 0:02:32]}  O-O-O+ {[%clk 0:02:58]} 9. Kc1 {[%clk 0:02:30]}  Bxf3 {[%clk 0:02:54]} 10. gxf3 {[%clk 0:02:30]}  Nd5 {[%clk 0:02:51]} 11. b4 {[%clk 0:02:28]}  e5 {[%clk 0:02:48]} 12. Kc2 {[%clk 0:02:19]}  a5 {[%clk 0:02:45]} 13. a3 {[%clk 0:02:18]}  Be7 {[%clk 0:02:42]} 14. Bb5 {[%clk 0:02:15]}  f5 {[%clk 0:02:41]} 15. Rg1 {[%clk 0:02:06]}  Bf6 {[%clk 0:02:39]} 16. Bg5 {[%clk 0:02:04]}  Bxg5 {[%clk 0:02:38]} 17. Rxg5 {[%clk 0:02:05]}  g6 {[%clk 0:02:38]} 18. Nd2 {[%clk 0:01:59]}  Kc7 {[%clk 0:02:11]} 19. Nc4 {[%clk 0:01:53]}  Rhe8 {[%clk 0:02:11]} 20. Bxc6 {[%clk 0:01:52]}  bxc6 {[%clk 0:02:10]} 21. Nxa5 {[%clk 0:01:43]}  e4 {[%clk 0:02:10]} 22. fxe4 {[%clk 0:01:23]}  Rxe4 {[%clk 0:02:11]} 23. Rd1 {[%clk 0:01:22]}  Re2+ {[%clk 0:02:11]} 24. Kb3 {[%clk 0:01:20]}  Rxf2 {[%clk 0:02:07]} 25. Rd3 {[%clk 0:01:10]}  Rxh2 {[%clk 0:02:03]} 26. c4 {[%clk 0:01:03]}  Ne7 {[%clk 0:02:03]} 27. Rxd8 {[%clk 0:01:04]}  Kxd8 {[%clk 0:02:04]} 28. b5 {[%clk 0:01:04]}  f4 {[%clk 0:01:59]} 29. b6 {[%clk 0:00:50]}  f3 {[%clk 0:01:58]} 30. Re5 {[%clk 0:00:47]}  f2 {[%clk 0:01:58]} 31. b7 {[%clk 0:00:47]}  Rh3+ {[%clk 0:01:39]} 32. Kb4 {[%clk 0:00:46]}  f1=Q {[%clk 0:01:19]} 33. b8=Q+ {[%clk 0:00:44]}  Kd7 {[%clk 0:01:12]} 34. Qb7+ {[%clk 0:00:41]} 1-0


[Site "https://www.chess.com"]